bitfinex/quotes_ETHUSD_20251107
["timestamp","ask_amount","ask_price","bid_price","bid_amount"]
[1762507467058,3.01243929,3319.6,3319.4,0.001]
[1762507467556,3.01242995,3319.6,3319.4,0.001]
[1762507467965,3.01250188,3319.5,3319.4,0.001]
[1762507468972,3.98530188,3319.5,3319.4,0.001]
[1762507471254,3.48560188,3319.5,3319.4,0.001]
[1762507471558,3.01250188,3319.5,3319.4,0.001]
[1762507474054,3.16290188,3319.5,3319.4,0.001]
[1762507475567,3.63600188,3319.5,3319.4,0.001]
[1762507475768,5.39541388,3319.5,3319.4,0.001]
[1762507480566,3.63600188,3319.5,3319.4,0.001]
[1762507480791,3.48560188,3319.5,3319.4,0.001]
[1762507480963,3.94650188,3319.5,3319.4,0.001]
[1762507485014,3.01250188,3319.5,3319.4,0.001]
[1762507485415,3.50980188,3319.5,3319.4,0.001]
[1762507485824,3.50900188,3319.5,3319.4,0.001]
[1762507486494,3.01170188,3319.5,3319.4,0.001]
[1762507488530,3.95920188,3319.5,3319.4,0.001]
[1762507489334,5.21891388,3319.5,3319.4,0.001]
[1762507489739,3.01277416,3319.2,3319.1,0.006]
[1762507489922,4.76978616,3319.2,3319.1,0.006]
[1762507490131,5.21998616,3319.2,3319.1,0.006]
[1762507492919,5.12568668,3319.2,3319.1,0.006]
[1762507494351,5.12568668,3319.2,3318.9,2.08849862]
[1762507494352,3.0129557,3319.0,3318.9,1e-08]
[1762507494647,10.6327254,3319.0,3318.9,1e-08]
[1762507494815,11.0829254,3319.0,3318.9,1e-08]
[1762507495829,12.3426374,3319.0,3318.9,1e-08]
[1762507496858,12.46339485,3319.0,3318.9,1e-08]
[1762507497254,3.01368211,3318.2,3318.1,0.005]
[1762507497454,4.96349411,3318.2,3318.1,0.005]
[1762507497665,4.77069411,3318.2,3318.1,0.005]
[1762507497968,5.22089411,3318.2,3318.1,0.005]
[1762507498169,3.0139546,3317.9,3317.8,0.003]
[1762507498359,5.2211666,3317.9,3317.8,0.003]
[1762507498733,5.17950609,3317.9,3317.8,0.003]
[1762507499152,4.2736666,3317.9,3317.8,0.003]
[1762507500435,0.90571642,3318.3,3317.8,0.003]
[1762507500641,3.01373611,3318.2,3317.8,0.003]
[1762507500980,3.01383094,3318.1,3317.8,0.003]
[1762507501196,0.90559886,3318.7,3317.8,0.003]
[1762507501342,3.01348762,3318.5,3317.8,0.003]
[1762507501653,0.12073157,3319.0,3317.9,3.31560173]
[1762507501846,3.01352072,3318.4,3317.9,0.301706]
[1762507502046,3.0129557,3319.0,3317.8,0.003]
[1762507502286,3.01309497,3318.9,3317.8,0.003]
[1762507502469,3.01382299,3318.1,3317.8,0.003]
[1762507502670,3.01371564,3318.2,3317.8,0.003]
[1762507502863,0.1928,3318.9,3317.8,0.003]
[1762507502864,3.0139546,3317.9,3317.8,0.003]
[1762507504998,3.5112546,3317.9,3317.8,0.003]
[1762507505358,5.2211666,3317.9,3317.8,0.003]
[1762507508298,5.6266706,3317.9,3317.8,0.003]
[1762507508467,5.6266706,3317.9,3317.1,0.005]
[1762507508468,3.01459061,3317.2,3317.1,0.005]
[1762507508671,3.96129061,3317.2,3317.1,0.005]
[1762507509291,6.12705823,3317.2,3317.1,0.005]
[1762507509481,5.67685823,3317.2,3317.1,0.005]
[1762507509787,4.27350261,3317.2,3317.1,0.005]
[1762507509963,4.77080261,3317.2,3317.1,0.005]
[1762507510389,5.22100261,3317.2,3317.1,0.005]
[1762507511609,4.39430054,3317.2,3317.1,0.005]
[1762507511826,4.27350261,3317.2,3317.1,0.005]
[1762507512421,5.22100261,3317.2,3317.1,0.005]
[1762507512792,3.01549966,3316.2,3316.1,0.008]
[1762507512997,3.70559966,3316.2,3316.1,0.008]
[1762507513428,3.01549966,3316.2,3316.1,0.008]
[1762507513719,6.7169657,3316.9,3316.1,0.008]
[1762507513720,1.259712,3316.8,3316.1,0.008]
[1762507513925,3.01538497,3316.4,3316.1,0.008]
[1762507514282,3.01544455,3316.3,3316.1,0.008]
[1762507514477,1.259712,3316.8,3316.1,0.008]
[1762507514685,3.01518831,3316.6,3316.1,0.008]
[1762507514882,3.0152107,3316.6,3316.1,0.008]
[1762507515079,3.01525273,3316.5,3316.1,0.008]
[1762507515382,3.01549966,3316.2,3316.1,0.008]
[1762507515576,3.01549966,3316.2,3315.1,0.005]
[1762507515577,3.01640926,3315.2,3315.1,0.005]
[1762507515802,6.7169657,3315.5,3315.1,0.005]
[1762507516018,0.90645942,3315.5,3315.1,0.005]
[1762507516319,1.456812,3315.9,3315.1,0.005]
[1762507516517,3.01633594,3315.3,3315.1,0.005]
[1762507516682,2.36313587,3315.9,3315.1,0.005]
[1762507516882,3.01619503,3315.5,3315.1,0.005]
[1762507517078,0.90632387,3315.9,3315.1,0.005]
[1762507517286,3.01601625,3315.7,3315.1,0.005]
[1762507517584,4.27515699,3316.3,3315.1,0.005]
[1762507517585,3.01604823,3315.6,3315.1,0.005]
[1762507517793,1.259712,3316.1,3315.1,0.005]
[1762507518021,3.01586526,3315.8,3315.1,0.30715885]
[1762507518231,3.01640926,3315.2,3315.1,0.005]
[1762507518545,1.259712,3315.9,3315.1,0.005]
[1762507518692,3.16680926,3315.2,3315.1,0.005]
[1762507518899,3.63890926,3315.2,3315.1,0.005]
[1762507519112,3.01640926,3315.2,3315.1,0.005]
[1762507519495,1.259712,3315.9,3315.1,0.005]
[1762507520208,3.01640926,3315.2,3315.1,0.005]
[1762507520429,3.01595439,3315.7,3315.1,0.005]
[1762507520726,7.9766777,3315.8,3315.1,0.005]
[1762507520727,3.01630541,3315.4,3315.1,0.005]
[1762507521133,3.01623494,3315.4,3315.1,0.005]
[1762507521338,3.01639255,3315.3,3315.1,0.005]
[1762507521500,1.259712,3315.9,3315.1,0.005]
[1762507521701,3.01640879,3315.3,3315.1,0.005]
[1762507522321,3.01610534,3315.6,3315.1,0.005]
[1762507522527,1.259712,3315.9,3315.1,0.005]
[1762507522712,3.01628783,3315.4,3315.1,0.005]
[1762507522912,1.259712,3315.9,3315.1,0.005]
[1762507522913,3.01634307,3315.3,3315.1,0.005]
[1762507523429,3.01562648,3316.1,3315.1,0.005]
[1762507523730,3.01617007,3315.5,3315.1,0.005]
[1762507523936,3.01623474,3315.4,3315.1,0.005]
[1762507524147,2.16597016,3316.2,3315.1,0.005]
[1762507524632,0.90625816,3316.2,3315.1,0.005]
[1762507524838,3.01523195,3316.5,3315.1,3.02148376]
[1762507525023,3.01540873,3316.3,3315.2,0.30214838]
[1762507525219,0.90622257,3316.4,3315.2,0.33231247]
[1762507525406,3.0153514,3316.4,3315.4,3.0161663]
[1762507525609,1.259712,3316.5,3315.1,0.005]
[1762507525996,3.01524626,3316.5,3315.1,0.005]
[1762507526199,1.259712,3316.6,3315.1,0.005]
[1762507526398,0.90607204,3316.8,3315.8,3.01579581]
[1762507526613,3.01518575,3316.6,3315.9,3.31733761]
[1762507526826,3.92074097,3317.1,3315.9,0.30157958]
[1762507527048,3.92074097,3317.1,3315.2,3.01635365]
[1762507527049,1.259712,3316.7,3315.2,3.01635365]
[1762507527343,3.01585684,3315.9,3315.2,3.01640846]
[1762507527513,3.01594087,3315.8,3315.1,3.02145629]
[1762507527714,3.48001781,3316.4,3315.1,0.005]
[1762507527953,0.1971,3315.9,3315.1,0.005]
[1762507528165,3.01640926,3315.2,3315.1,0.005]
[1762507528647,3.01632742,3315.3,3315.1,0.005]
[1762507528847,3.01640926,3315.2,3315.1,0.005]
[1762507529044,3.01633716,3315.3,3315.1,0.005]
[1762507529231,0.1971,3315.9,3315.1,0.005]
[1762507529431,3.01568154,3316.0,3315.1,0.005]
[1762507529635,3.01637796,3315.3,3315.1,0.005]
[1762507529836,0.4647,3315.9,3315.1,0.005]
[1762507530045,3.01624662,3315.4,3315.1,0.005]
[1762507530346,0.1504,3315.4,3315.1,0.005]
[1762507530650,0.1504,3315.4,3315.1,0.30716806]
[1762507530946,0.1504,3315.4,3315.1,0.005]
[1762507531149,3.01584069,3315.9,3315.2,3.01635912]
[1762507531451,0.1496,3315.7,3315.1,3.17184804]
[1762507531621,0.1496,3315.7,3315.1,0.1554]
[1762507531822,0.1496,3315.7,3315.2,3.01633626]
[1762507532028,3.16560718,3315.7,3315.1,0.1554]
[1762507532228,0.1496,3315.7,3315.1,3.1728969]
[1762507532453,0.1496,3315.7,3315.2,3.01640013]
[1762507532643,0.1496,3315.7,3315.3,3.01631492]
[1762507532824,0.002,3316.1,3315.1,0.77535575]
[1762507533030,0.1504,3316.0,3315.5,0.1504]
[1762507533551,0.002,3316.1,3315.6,3.01604536]
[1762507533722,0.002,3316.1,3315.8,3.01585102]
[1762507533917,0.002,3316.1,3315.7,3.01593034]
[1762507534493,0.002,3316.1,3315.9,3.01571626]
[1762507534639,0.002,3316.1,3315.9,3.16611626]
[1762507534973,0.002,3316.1,3315.9,3.1661133]
[1762507535275,0.002,3316.1,3315.3,3.01625585]
[1762507535276,3.01571345,3316.0,3315.3,3.01625585]
[1762507535488,0.002,3316.1,3315.4,0.30162558]
[1762507535641,0.002,3316.1,3315.6,3.01604164]
[1762507535841,0.002,3316.1,3315.9,3.01572201]
[1762507536278,0.002,3316.1,3315.7,3.01593735]
[1762507536572,0.002,3316.1,3315.7,3.01590934]
[1762507536781,0.002,3316.1,3315.8,3.01584799]
[1762507536994,0.002,3316.1,3315.4,0.30162558]
[1762507537170,0.002,3316.1,3315.9,3.0157687]
[1762507537372,0.002,3316.1,3315.4,0.30162558]
[1762507537545,0.002,3316.1,3315.9,3.01571728]
[1762507538060,0.002,3316.1,3315.8,3.01585956]
[1762507538247,0.002,3316.1,3315.9,3.01576972]
[1762507538674,0.002,3316.1,3315.8,3.01582026]
[1762507539053,0.002,3316.1,3315.5,0.33178776]
[1762507539288,0.002,3316.1,3315.6,3.01597598]
[1762507539478,0.002,3316.1,3315.7,3.0159321]
[1762507539884,0.002,3316.1,3315.8,3.01579861]
[1762507540089,0.002,3316.1,3315.3,3.01631828]
[1762507540389,0.002,3316.1,3315.9,3.01572718]
[1762507540754,0.002,3316.1,3316.0,3.01568154]
[1762507541282,0.002,3316.1,3315.8,3.01583528]
[1762507541283,0.002,3316.1,3315.1,0.006]
[1762507541589,0.002,3316.1,3315.9,3.01576844]
[1762507541790,0.002,3316.1,3315.8,3.01582178]
[1762507541992,0.002,3316.1,3315.7,3.01591198]
[1762507542372,0.002,3316.1,3315.3,3.01623933]
[1762507542572,0.002,3316.1,3315.4,3.31779736]
[1762507542796,3.01582955,3315.9,3315.3,3.01625593]
[1762507543102,0.002,3316.1,3315.4,3.0162067]
[1762507543266,0.002,3316.1,3315.1,0.006]
[1762507543267,3.01764826,3316.1,3315.5,3.01611914]
[1762507543462,3.01569256,3316.0,3315.4,3.01619427]
[1762507543667,3.01569256,3316.0,3315.5,3.01613225]
[1762507543904,0.002,3316.1,3315.2,3.01639519]
[1762507544064,3.01568154,3316.0,3315.4,3.01619499]
[1762507544480,3.0157923,3315.9,3315.4,3.01619499]
[1762507544691,0.4632,3316.0,3315.1,0.006]
[1762507544890,3.01600273,3315.7,3315.1,0.006]
[1762507545079,3.01586344,3315.8,3315.1,0.006]
[1762507545279,0.1504,3315.8,3315.2,0.1504]
[1762507545589,0.002,3316.1,3315.1,0.006]
[1762507545792,0.1524,3316.1,3315.5,0.1504]
[1762507546098,3.01577249,3315.9,3315.5,0.1504]
[1762507546289,3.01584041,3315.9,3315.5,0.1504]
[1762507546493,3.01587154,3315.8,3315.5,0.1504]
[1762507546666,3.01581126,3315.9,3315.5,0.1504]
[1762507546870,0.1524,3316.1,3315.5,0.1504]
[1762507547299,0.4993,3315.6,3315.5,0.1504]
[1762507547506,3.0157808,3315.9,3315.5,0.1504]
[1762507547805,0.4632,3316.0,3315.2,0.1504]
[1762507547806,3.51539949,3315.6,3315.2,0.1504]
[1762507547976,0.4993,3315.6,3315.2,0.1504]
[1762507548522,3.01621455,3315.5,3315.1,0.006]
[1762507548673,3.16661455,3315.5,3315.1,0.006]
[1762507548874,3.62981455,3315.5,3315.1,0.006]
[1762507549308,0.6136,3315.5,3315.1,0.006]
[1762507549512,0.1504,3315.5,3315.1,3.02244741]
[1762507549913,0.4632,3315.9,3315.1,0.006]
[1762507550118,0.1504,3315.7,3315.2,3.16671925]
[1762507550303,0.1504,3315.7,3315.3,3.01630728]
[1762507550807,0.1504,3315.7,3315.4,3.01619582]
[1762507551312,0.1504,3315.7,3315.3,3.01630843]
[1762507551915,0.002,3316.1,3315.1,0.006]
[1762507552104,0.002,3316.1,3315.7,3.01586996]
[1762507552292,0.002,3316.1,3315.6,0.1504]
[1762507552491,3.01760065,3316.1,3315.6,0.1504]
[1762507552817,3.01765163,3316.1,3315.6,0.1504]
[1762507553028,3.01765163,3316.1,3315.6,3.16643237]
[1762507553219,0.002,3316.1,3315.6,3.16643237]
[1762507553584,0.002,3316.1,3315.6,0.1504]
[1762507553786,3.01570212,3316.0,3315.6,0.1504]
[1762507554116,3.48086492,3316.1,3315.6,0.1504]
[1762507554318,0.4644,3316.1,3315.6,0.1504]
[1762507554480,0.4632,3316.0,3315.6,0.1504]
[1762507554685,3.4789062,3316.0,3315.6,0.1504]
[1762507554898,0.4632,3316.0,3315.6,0.1504]
[1762507555101,0.0012,3316.1,3315.6,3.1664451]
[1762507555295,3.48004935,3316.1,3315.6,0.1504]
[1762507555534,3.01610888,3315.6,3315.1,0.006]
[1762507555714,0.4993,3315.6,3315.1,0.006]
[1762507556021,3.47924536,3315.6,3315.1,0.006]
[1762507556387,0.4632,3315.6,3315.1,0.006]
[1762507556796,3.47929483,3315.6,3315.1,0.006]
[1762507557000,3.01614279,3315.5,3315.1,0.006]
[1762507557334,3.0162273,3315.4,3315.1,0.006]
[1762507557498,3.51570926,3315.2,3315.1,0.006]
[1762507557898,0.4993,3315.2,3315.1,0.006]
[1762507558098,3.0162525,3315.4,3315.1,0.006]
[1762507558533,3.4794525,3315.4,3315.1,0.006]
[1762507558730,0.4632,3315.4,3315.1,0.006]
[1762507558949,0.4632,3315.7,3315.1,0.006]
[1762507559147,3.01546331,3316.3,3315.1,0.006]
[1762507559148,3.01568154,3316.0,3315.2,3.01639143]
[1762507559451,0.4644,3316.1,3315.1,0.006]
[1762507559632,3.01601827,3315.7,3315.1,0.006]
[1762507560148,3.01605235,3315.6,3315.1,0.006]
[1762507560311,3.01606003,3315.6,3315.1,0.006]
[1762507560504,3.47926003,3315.6,3315.1,0.006]
[1762507560704,0.4632,3315.6,3315.1,3.02249982]
[1762507560899,0.4632,3315.6,3315.1,3.02245941]
[1762507561354,3.51570926,3315.2,3315.1,0.006]
[1762507561651,0.4993,3315.2,3315.1,0.006]
[1762507561943,3.97890926,3315.2,3315.1,0.006]
[1762507562755,0.9625,3315.2,3315.1,0.006]
[1762507563046,3.97890926,3315.2,3315.1,0.006]
[1762507565041,5.23862126,3315.2,3315.1,0.006]
[1762507565954,5.23862126,3315.2,3314.3,2.15392562]
[1762507565955,3.01713734,3314.4,3314.3,2.15392562]
[1762507566160,3.70383734,3314.4,3314.3,2.15392562]
[1762507566336,5.42674934,3314.4,3314.3,2.15392562]
[1762507566967,5.42674934,3314.4,3314.1,0.005]
[1762507566968,3.01731941,3314.2,3314.1,0.005]
[1762507567135,3.49111941,3314.2,3314.1,0.005]
[1762507567330,3.0182301,3313.2,3313.1,0.005]
[1762507567559,3.9804301,3313.2,3313.1,0.005]
[1762507568449,3.5172301,3313.2,3313.1,0.005]
[1762507568651,0.1874,3313.3,3313.1,0.005]
[1762507568848,0.1874,3313.6,3313.1,0.005]
[1762507569157,0.4632,3314.0,3313.1,0.005]
[1762507569158,0.1874,3313.9,3313.1,0.3073402]
[1762507569357,3.01778067,3313.7,3313.1,0.005]
[1762507569557,0.4632,3313.8,3313.1,0.005]
[1762507569857,3.01790683,3313.6,3313.1,0.006]
[1762507570036,0.4632,3313.8,3313.1,0.006]
[1762507570231,1.722912,3313.8,3313.1,3.02431481]
[1762507570471,0.4632,3313.8,3313.1,3.02431481]
[1762507570639,3.20501001,3313.9,3313.2,3.0182301]
[1762507570831,0.1874,3313.9,3313.3,3.01813059]
[1762507571336,3.20500552,3313.9,3313.1,0.006]
[1762507571540,1.259712,3314.0,3313.2,3.01817618]
[1762507571848,7.13485457,3314.2,3313.5,3.01788974]
[1762507572051,3.01756953,3314.0,3313.2,3.65646196]
[1762507572251,3.2050579,3313.9,3313.2,0.63826078]
[1762507572447,3.2050579,3313.9,3313.1,3.36439731]
[1762507572448,0.1874,3313.9,3313.1,0.006]
[1762507572883,1.259712,3314.1,3313.1,0.3461]
[1762507573092,3.01751514,3314.0,3313.3,3.01813901]
[1762507573452,6.67165457,3314.2,3313.4,3.01796962]
[1762507573652,9.68898276,3314.2,3313.5,3.01794704]
[1762507574205,3.20455228,3314.4,3313.7,3.01771716]
[1762507574419,0.1874,3314.4,3313.3,0.3401]
[1762507574582,3.01728323,3314.3,3313.7,3.01777449]
[1762507574787,3.20459744,3314.4,3313.7,3.01777449]
[1762507575000,3.01723998,3314.3,3313.7,3.01777449]
[1762507575190,0.1874,3314.4,3313.8,3.01768255]
[1762507575409,3.0169611,3314.6,3313.8,0.30176825]
[1762507575705,1.259712,3314.9,3314.2,3.01726057]
[1762507576080,4.27640822,3314.9,3314.3,3.01722658]
[1762507576404,3.01677325,3314.8,3314.0,0.3401]
[1762507576608,3.01681038,3314.8,3314.0,3.35759678]
[1762507576907,0.1496,3314.6,3314.1,0.1504]
[1762507577110,0.1496,3314.6,3314.1,3.16776516]
[1762507577322,0.1496,3314.6,3314.2,3.01731497]
[1762507577606,0.1496,3314.6,3314.1,3.50788367]
[1762507577925,1.261712,3315.2,3314.5,3.35714631]
[1762507577926,0.002,3315.2,3314.5,3.35714631]
[1762507578078,0.1504,3315.0,3314.8,0.3401]
[1762507578407,0.1504,3315.0,3314.8,3.35684608]
[1762507578583,0.1504,3315.0,3314.9,3.01668225]
[1762507578785,0.1504,3315.0,3314.9,3.35678225]
[1762507579099,0.002,3315.2,3314.9,3.69688225]
[1762507579300,0.002,3315.2,3315.1,0.3401]
[1762507579704,0.002,3315.2,3314.7,0.1504]
[1762507579909,0.6419,3314.8,3313.8,0.30176825]
[1762507580227,0.6419,3314.8,3313.4,0.17]
[1762507580228,0.5579,3313.9,3313.4,0.17]
[1762507580729,3.01751342,3314.0,3313.4,0.17]
[1762507580932,0.1815,3314.1,3313.4,0.17]
[1762507581288,0.1815,3314.1,3313.4,3.18802744]
[1762507581485,3.01768443,3313.8,3313.4,0.17]
[1762507581731,3.01768443,3313.8,3313.2,3.01817857]
[1762507581732,3.01762585,3313.9,3313.3,3.01812889]
[1762507582038,3.01762585,3313.9,3313.1,0.006]
[1762507582039,3.65186798,3314.1,3313.4,3.01800637]
[1762507582186,0.6344,3314.1,3313.2,3.01817333]
[1762507582384,0.1815,3314.1,3313.2,0.60424895]
[1762507582586,3.47043927,3314.0,3313.3,3.01813521]
[1762507582905,3.47043927,3314.0,3313.1,0.006]
[1762507583148,0.4529,3314.0,3313.1,0.006]
[1762507583304,3.19892925,3314.1,3313.5,3.01787267]
[1762507583509,3.19897243,3314.1,3313.5,3.01787267]
[1762507583692,3.01750879,3314.0,3313.4,3.01801129]
[1762507584090,4.27658834,3314.7,3313.5,0.03017956]
[1762507584091,0.4529,3314.7,3313.5,0.03017956]
[1762507584288,3.01705845,3314.5,3313.8,3.01766471]
[1762507584509,3.01715979,3314.4,3313.8,3.01766471]
[1762507584811,3.01653245,3315.1,3313.1,3.02426746]
[1762507584812,0.002,3315.2,3314.4,3.01713459]
[1762507585008,0.002,3315.2,3315.1,3.35660025]
[1762507585210,0.002,3316.5,3315.1,1.89537203]
[1762507585408,0.005,3316.9,3316.4,0.5101]
[1762507585797,0.4529,3316.8,3315.4,0.3401]
[1762507586002,0.4529,3316.8,3315.1,3.18643188]
[1762507586003,3.01574968,3316.0,3315.1,3.18643188]
[1762507586223,1.720112,3316.5,3315.1,0.17]
[1762507586224,3.01560481,3316.1,3315.1,0.17]
[1762507586388,0.4529,3316.4,3315.1,0.17]
[1762507586587,0.4529,3316.4,3315.2,0.3401]
[1762507586814,3.01577855,3315.9,3315.2,0.3401]
[1762507587044,3.01577855,3315.9,3315.1,0.17]
[1762507587243,0.1815,3315.9,3315.1,3.18648762]
[1762507587429,0.1815,3315.9,3315.1,3.186478]
[1762507587634,0.1815,3315.9,3315.1,0.17]
[1762507587847,3.0156039,3316.1,3315.2,3.01634334]
[1762507588556,3.0156039,3316.1,3315.1,0.17]
[1762507588753,3.0155041,3316.2,3315.2,3.01640926]
[1762507588920,3.0155041,3316.2,3315.4,3.01617093]
[1762507589121,3.19691673,3316.3,3315.1,0.17]
[1762507589321,3.01569365,3316.0,3315.2,3.0163355]
[1762507589748,0.002,3315.9,3315.4,3.01622125]
[1762507590052,0.1504,3315.8,3315.5,3.01607229]
[1762507590687,0.1504,3315.8,3315.4,3.01621847]
[1762507590823,0.1504,3315.8,3315.7,0.3401]
[1762507591023,0.002,3315.9,3315.8,3.01586344]
[1762507591369,0.002,3315.9,3315.6,0.1504]
[1762507591576,0.002,3315.9,3315.6,3.16636728]
[1762507591777,0.002,3315.9,3315.8,3.01586344]
[1762507591973,0.002,3315.9,3315.8,3.35596344]
[1762507592146,0.002,3315.9,3315.8,3.69606344]
[1762507593160,0.002,3315.9,3315.8,4.53572977]
[1762507594493,0.6128,3315.9,3315.5,3.016062]
[1762507594696,0.6128,3315.9,3315.3,0.1504]
[1762507594910,0.6128,3315.9,3315.3,3.16670986]
[1762507595200,0.6128,3315.9,3315.4,3.01622107]
[1762507595511,0.6128,3315.9,3315.5,3.01612416]
[1762507595796,0.6128,3315.9,3315.8,3.01586344]
[1762507595797,0.1524,3315.9,3315.8,3.01586344]
[1762507596375,0.002,3315.9,3315.8,3.01586344]
[1762507597069,0.002,3315.9,3315.8,3.35596344]
[1762507598513,0.002,3315.9,3315.8,3.97929751]
[1762507598799,0.002,3315.9,3315.8,3.84646344]
[1762507599005,0.002,3315.9,3315.8,3.87662207]
[1762507599504,0.002,3315.9,3315.8,3.84646344]
[1762507599904,0.002,3315.9,3315.8,4.25196744]
[1762507599905,0.0012,3315.9,3315.8,4.25196744]
[1762507600111,0.0012,3315.9,3315.8,4.97876289]
[1762507601022,0.0012,3315.9,3315.8,3.50636344]
[1762507601179,0.0012,3315.9,3315.8,3.01586344]
[1762507602276,0.0012,3315.9,3315.5,3.01613053]
[1762507602478,0.0012,3315.9,3315.8,3.01586344]
[1762507602866,0.0012,3315.9,3315.8,3.35596344]
[1762507603062,0.0012,3315.9,3315.8,4.36341436]
[1762507603268,0.0012,3315.9,3315.8,4.33325573]
[1762507608618,0.0012,3315.9,3315.8,3.35596344]
[1762507609805,0.0012,3315.9,3315.8,3.69606344]
[1762507610183,0.0012,3315.9,3315.8,3.35596344]
[1762507610905,0.0012,3315.9,3315.8,3.69606344]
[1762507611106,0.0012,3315.9,3315.8,3.84646344]
[1762507611422,0.0012,3315.9,3315.8,4.83430121]
[1762507614281,0.002,3316.6,3316.5,3.01522689]
[1762507614479,0.002,3316.6,3316.5,4.61503889]
[1762507614737,0.002,3316.6,3316.5,3.01522689]
[1762507615222,0.4544,3316.6,3315.7,3.35602214]
[1762507615445,0.002,3316.6,3316.5,3.01522689]
[1762507615584,0.002,3316.6,3316.5,3.52532689]
[1762507616921,0.002,3316.6,3316.5,3.01522689]
[1762507617417,0.002,3316.6,3316.4,3.01530721]
[1762507617618,0.002,3316.6,3316.2,0.17]
[1762507617919,0.002,3316.6,3316.4,3.01531252]
[1762507618111,0.002,3316.6,3316.5,3.01522689]
[1762507619424,0.002,3316.6,3316.2,0.17]
[1762507619425,0.4544,3316.6,3316.2,3.01544737]
[1762507619725,0.4524,3316.4,3316.3,3.01540873]
[1762507619897,0.4541,3316.6,3316.3,3.01540873]
[1762507620097,0.4541,3316.6,3316.5,3.01522689]
[1762507620098,0.002,3316.6,3316.5,3.01522689]
[1762507620811,0.9065,3316.6,3315.7,0.3401]
[1762507621017,3.46775423,3316.4,3315.8,3.01584773]
[1762507621319,0.4524,3316.4,3315.5,3.01712509]
[1762507621525,3.46757199,3316.3,3315.6,3.01603886]
[1762507621725,0.4521,3316.3,3315.6,3.01603886]
[1762507621927,3.46761916,3316.2,3315.5,0.001]
[1762507622117,0.4524,3315.6,3315.5,0.001]
[1762507622297,0.4521,3316.0,3315.5,0.001]
[1762507622628,0.4516,3315.6,3315.5,0.001]
[1762507622827,3.91974536,3315.6,3315.5,0.001]
[1762507623388,0.9037,3315.6,3315.5,0.001]
[1762507623803,0.4516,3315.6,3315.5,0.001]
[1762507624006,0.4521,3316.1,3315.5,0.001]
[1762507624318,0.6028,3315.6,3315.5,0.001]
[1762507624552,3.61884536,3315.6,3315.5,0.001]
[1762507624721,4.07094536,3315.6,3315.5,0.001]
[1762507625236,1.0549,3315.6,3315.5,0.001]
[1762507625587,4.07094536,3315.6,3315.5,0.001]
[1762507628606,3.01640926,3315.2,3315.1,0.001]
[1762507628930,4.72852126,3315.2,3315.1,0.001]
[1762507629103,5.18062126,3315.2,3315.1,0.001]
[1762507629436,4.27639425,3314.9,3314.8,0.001]
[1762507629732,3.01686427,3314.7,3314.6,0.001]
[1762507629930,5.18107627,3314.7,3314.6,0.001]
[1762507630619,3.0182301,3313.2,3312.3,3.01905005]
[1762507630818,3.0182301,3313.2,3312.5,0.1504]
[1762507630819,3.6511301,3313.2,3312.5,0.1504]
[1762507631019,1.085,3313.2,3312.5,0.1504]
[1762507631222,0.1504,3313.3,3312.7,0.1504]
[1762507631536,4.90921427,3314.7,3313.2,3.01822873]
[1762507631729,4.90921427,3314.7,3313.1,0.175]
[1762507631730,3.01719821,3314.4,3313.1,0.175]
[1762507632060,1.259712,3314.3,3313.4,3.01796005]
[1762507632196,1.259712,3314.1,3313.4,3.01796005]
[1762507632397,3.017455,3314.1,3313.4,3.01796005]
[1762507632598,0.4521,3314.1,3313.1,0.175]
[1762507632818,0.4521,3314.1,3313.1,0.83524576]
[1762507633029,0.1805,3314.7,3314.0,3.01743368]
[1762507633234,0.4521,3314.5,3313.9,3.01752588]
[1762507633433,3.46918384,3314.5,3313.6,3.01778296]
[1762507633631,0.4521,3314.5,3314.1,3.01733878]
[1762507633929,0.4521,3314.5,3314.0,3.01741956]
[1762507634437,0.4521,3314.5,3313.1,0.175]
[1762507634438,0.4907,3314.1,3313.1,0.175]
[1762507634746,3.50814596,3314.1,3313.4,3.01804342]
[1762507634912,3.017597,3313.9,3313.2,3.01817352]
[1762507635099,3.01776307,3313.8,3313.1,3.02332098]
[1762507635439,3.49205768,3314.0,3313.1,0.005]
[1762507635440,0.4907,3313.2,3313.1,0.005]
[1762507635817,3.9834301,3313.2,3313.1,0.005]
[1762507636021,0.9652,3313.2,3313.1,0.005]
[1762507636221,3.9834301,3313.2,3313.1,0.005]
[1762507636461,0.9652,3313.2,3313.1,0.005]
[1762507636975,3.9834301,3313.2,3313.1,0.005]
[1762507637253,5.2431421,3313.2,3313.1,0.005]
[1762507637619,3.01768453,3313.8,3313.1,0.005]
[1762507637831,3.5089301,3313.2,3313.1,0.005]
[1762507638163,4.7686421,3313.2,3313.1,0.005]
[1762507638451,5.2431421,3313.2,3313.1,0.005]
[1762507638858,2.224912,3313.2,3313.1,0.005]
[1762507639042,1.750412,3313.2,3313.1,0.005]
[1762507639245,2.224912,3313.2,3313.1,0.005]
[1762507639586,0.9652,3313.2,3313.1,0.005]
[1762507639760,0.4745,3313.6,3313.1,0.005]
[1762507639924,0.4907,3313.2,3313.1,0.005]
[1762507640119,0.4745,3313.6,3313.1,3.02326933]
[1762507640325,0.4745,3313.6,3313.1,0.005]
[1762507640835,0.4907,3313.2,3313.1,0.005]
[1762507641330,0.1504,3313.2,3313.1,0.005]
[1762507641895,4.1338301,3313.2,3313.1,0.005]
[1762507642327,1.1156,3313.2,3313.1,0.005]
[1762507642531,0.6411,3313.2,3313.1,0.005]
[1762507642728,1.1156,3313.2,3313.1,0.005]
[1762507643188,0.6411,3313.2,3313.1,0.005]
[1762507643367,0.1504,3313.2,3313.1,0.005]